Cogmind - Beta 10.2 *** ADVENTURER MODE // 2021.09.18 @ 00:44:54 Player: Departed Result: Self-destructed Performance ------------- Evolutions (1) 500 Regions Visited (2) 400 Robots Destroyed (35) 175 Value Destroyed (578) 578 Prototype IDs (0) 0 Alien Tech Used (0) 0 Bonus (0) 0 TOTAL SCORE: 1653 Bonus ------- None Cogmind --------- Core Integrity 197/400 Matter 214/300 Energy 100/100 System Corruption 0% Temperature Cool (0) Movement Core (550) Ox10 Location -9/Materials Parts ------- > --- POWER (1) -------- (None) > --- PROPULSION (2) --- (None) > --- UTILITY (3) ------ High-capacity Storage Unit Signal Interpreter > --- WEAPON (3) ------- (None) > --- INVENTORY (12) --- Light Ion Engine Light Ion Engine Light Ion Engine Aluminum Leg Aluminum Leg Heat Sink Small Matter Pod (7) Plasma Cutter Mace Peak State ------------ > --- POWER ------------ Light Ion Engine > --- PROPULSION ------- Aluminum Leg Compact Wheel > --- UTILITY ---------- High-capacity Storage Unit Sensor Array Signal Interpreter > --- WEAPON ----------- Light Assault Rifle Improved Light Cannon Improved Light Cannon > --- INVENTORY -------- Light Ion Engine Light Ion Engine Aluminum Leg Aluminum Leg Heat Sink Small Matter Pod Light Assault Rifle Light Cannon Plasma Cutter Mace [Rating: 12] Favorites ----------- Power Light Ion Engine Engine Light Ion Engine Propulsion Aluminum Leg Leg Aluminum Leg Wheel Compact Wheel Flight Unit Flight Unit Utility Heat Sink Device Heat Sink Storage High-capacity Storage Unit Processor Signal Interpreter Weapon EM Pulse Gun Energy Gun EM Pulse Gun Ballistic Gun Light Assault Rifle Ballistic Cannon Improved Light Cannon Build | -11 -10 -9 ------- Run | Scr Mat Mat Slots Evolved 2 | . . 2 Power . | . . . Propulsion . | . . . Utility 1 | . . 1 Weapon 1 | . . 1 Parts Attached 26 | 7 11 8 Power 1 | 1 . . Engine 1 | 1 . . Core . | . . . Reactor . | . . . Propulsion 7 | 2 4 1 Treads . | . . . Leg 4 | 2 2 . Wheel 1 | . . 1 Hover . | . . . Flight 2 | . 2 . Utility 5 | 1 2 2 Device 3 | 1 1 1 Storage 1 | . 1 . Processor 1 | . . 1 Hackware . | . . . Protection . | . . . Artifact . | . . . Weapon 13 | 3 5 5 Energy Gun 3 | 1 2 . Energy Cannon . | . . . Ballistic Gun 5 | 2 2 1 Ballistic Cannon 5 | . 1 4 Launcher . | . . . Special Weapon . | . . . Impact Weapon . | . . . Slashing Weapon . | . . . Piercing Weapon . | . . . Special Melee Weapon . | . . . Unidentified Prototypes . | . . . Parts Lost 10 | . . 10 Power 1 | . . 1 Propulsion 2 | . . 2 Utility 1 | . . 1 Weapon 6 | . . 6 Highest Loss Streak 9 | . . 9 Average Slot Usage (%) 92 | . 92 93 Engine 11 | . 14 9 Leg 21 | . 27 13 Wheel 2 | . . 6 Device 14 | . 14 14 Storage 8 | . 7 11 Processor 2 | . . 6 Energy Gun 10 | . 13 5 Ballistic Gun 7 | . 6 10 Ballistic Cannon 11 | . 7 16 Naked Turns . | . . . Heaviest Build 45 | 7 41 45 Greatest Support 20 | 20 20 20 Greatest Overweight (x) 12 | . 2 12 Average Overweight (x) . | . . 2 Largest Inventory Capacity 12 | 4 12 12 Average Capacity 8 | 4 7 12 Most Carried 11 | 4 10 11 Average Carried 6 | . 5 8 Final Capacity 12 | 4 12 12 Final Carried 10 | 3 10 9 Class Distribution -------------------- 72% | Mutant 27% | Skirmisher Dominant Class ---------------- Mutant | -10/Materials Skirmisher | -9/Materials Resources | -11 -10 -9 ----------- Run | Scr Mat Mat Matter Collected 715 | 264 103 348 Remotely . | . . . Salvage Created 896 | 61 367 468 Parts 69 | 6 29 34 Haulers Intercepted 1 | . . 1 Recyclers Shooed . | . . . Parts Field Recycled . | . . . Retrieved Matter . | . . . Parts Self-Destructed . | . . . Prevented . | . . . Kills | -11 -10 -9 ------- Run | Scr Mat Mat Combat Hostiles Destroyed 22 | 1 10 11 Guns 10 | 1 5 4 Cannons 10 | . 3 7 AOE 2 | . 2 . Classes Destroyed 7 | 2 3 2 Worker 3 | 1 . 2 Builder 3 | . 2 1 Hauler 1 | . . 1 Recycler 2 | . . 2 Watcher 4 | . 1 3 Swarmer 13 | . 3 10 Grunt 9 | 1 7 1 Best Kill Streak 12 | 1 4 12 Combat Bots Only 5 | 1 4 5 Max Kills in Single Turn 3 | 1 1 3 Gunslinging . | . . . Exploded 1 | . 1 . Melee . | . . . Uniques/NPCs Destroyed . | . . . Combat | -11 -10 -9 -------- Run | Scr Mat Mat Damage Taken 1182 | 25 283 874 Core 312 | . 109 203 Absorbed by Shields . | . . . Core Remaining (%) 78 | 100 56 . Volleys Fired 76 | 4 35 37 Largest 3 | 2 2 3 Hottest 113 | 60 75 113 Shots Fired 181 | 8 70 103 Gun 98 | 8 49 41 Cannon 83 | . 21 62 Launcher . | . . . Special . | . . . Kinetic 135 | 4 35 96 Thermal . | . . . Explosive . | . . . Electromagnetic 46 | 4 35 7 Robot Hit Streak 16 | 7 16 13 Robot Miss Streak 4 | 1 4 3 Penetration Max . | . . . Secondary Targets 1 | . 1 . Max Gunslinging Chain 1 | . 1 . Shots Hit Robots 107 | 7 45 55 Core Hits 47 | 4 18 25 Critical Hits . | . . . Critical Kills . | . . . Critical Parts Destroyed . | . . . Melee Attacks . | . . . Impact . | . . . Slashing . | . . . Piercing . | . . . Sneak Attacks . | . . . Combat Hostiles . | . . . Follow-up Attacks . | . . . Damage Inflicted 1810 | 81 830 899 Guns 685 | 81 398 206 Cannons 928 | . 235 693 Explosions 197 | . 197 . Melee . | . . . Ramming . | . . . Kinetic 1134 | 28 264 842 Thermal 197 | . 197 . Explosive . | . . . Electromagnetic 479 | 53 369 57 Impact . | . . . Slashing . | . . . Piercing . | . . . Highest Corruption . | . . . Average Corruption . | . . . Corruption Purged . | . . . Overload Shots . | . . . Overflow Damage 16 | . 9 7 Projectiles 10 | . 3 7 Explosions 6 | . 6 . Melee . | . . . Knockbacks 16 | . 10 6 Impact . | . . . Kinetic 14 | . 8 6 Secondary 2 | . 2 . Self-Inflicted Damage . | . . . Shots . | . . . Rammed . | . . . Targets Rammed . | . . . Kicked . | . . . Crushed . | . . . Highest Temperature 313 | 58 9 313 Average Temperature 114 | 30 4 144 Received Heat Transfer 219 | 18 171 30 Siege Activations . | . . . Robots Corrupted . | . . . Combat Hostiles . | . . . Parts Fried . | . . . Impact Corruptions . | . . . Robots Melted . | . . . Combat Hostiles . | . . . Parts Melted . | . . . Heat Transferred 200 | . 200 . Parts Sabotaged . | . . . Parts Stolen . | . . . Parts Stripped . | . . . Power Chain Reactions 3 | . 3 . Missiles Intercepted . | . . . Alert | -11 -10 -9 ------- Run | Scr Mat Mat Peak Influence 389 | 25 315 389 Initial 113 | . 13 113 Average 142 | 4 136 204 Maximum Alert Level 1 | . 1 1 Low Security (%) 68 | 100 73 49 Level 1 31 | . 26 50 Level 2 . | . . . Level 3 . | . . . Level 4 . | . . . Level 5 . | . . . High Security . | . . . Max Security . | . . . Squads Dispatched 2 | . 1 1 Investigation 1 | . 1 . Extermination . | . . . Reinforcement 1 | . . 1 Assault . | . . . Garrison . | . . . Intercept . | . . . Construction Impeded 1 | . . 1 Haulers Reinforced . | . . . Stealth | -11 -10 -9 --------- Run | Scr Mat Mat Distress Signals 2 | . 2 . Communications Jammed . | . . . Distress Signals . | . . . Times Spotted 39 | 1 16 22 Peak Tracking Total 9 | 1 5 9 Tactical Retreats 2 | . 2 . Traps | -11 -10 -9 ------- Run | Scr Mat Mat Traps Triggered . | . . . Indirectly . | . . . Trap Hack Attempts . | . . . Triggered . | . . . Disarmed . | . . . Reprogrammed . | . . . Reused . | . . . Traps Extracted . | . . . Installed . | . . . Triggered . | . . . Machines | -11 -10 -9 ---------- Run | Scr Mat Mat Machines Disabled 2 | . . 2 Max in Single Turn 1 | . . 1 Machines Sabotaged . | . . . Garrisons Compromised . | . . . Overloaded Fab Kills . | . . . Fab Network Shutdowns . | . . . Hacking | -11 -10 -9 --------- Run | Scr Mat Mat Machines Accessed 2 | . 1 1 Terminals 1 | . 1 . Fabricators . | . . . Repair Stations . | . . . Recycling Units . | . . . Scanalyzers 1 | . . 1 Garrison Access . | . . . Total Hacks 5 | . 3 2 Successful 3 | . 1 2 Failed 2 | . 2 . Catastrophic . | . . . Database Lockouts . | . . . Manual 2 | . 2 . Terminals 3 | . 3 . Fabricators . | . . . Repair Stations . | . . . Recycling Units . | . . . Scanalyzers 2 | . . 2 Garrison Access . | . . . Terminal Hacks 1 | . 1 . Record 1 | . 1 . Fabricator Hacks . | . . . Repair Station Hacks . | . . . Recycling Unit Hacks . | . . . Scanalyzer 2 | . . 2 Insert Component 1 | . . 1 Analyze 1 | . . 1 Garrison Access Hacks . | . . . Unauthorized Hacks . | . . . Terminals . | . . . Fabricators . | . . . Repair Stations . | . . . Recycling Units . | . . . Scanalyzers . | . . . Garrison Access . | . . . Data Cores Recovered . | . . . Used . | . . . Hacking Detections 1 | . 1 . Full Trace Events 1 | . 1 . Feedback Events . | . . . Feedback Blocked . | . . . Robot Schematics Acquired . | . . . Robots Built . | . . . Matter . | . . . Time . | . . . Total Robot Build Rating . | . . . Part Schematics Acquired 1 | . . 1 Parts Built . | . . . Matter . | . . . Time . | . . . Total Part Build Rating . | . . . Parts Repaired . | . . . Time . | . . . Parts Recycled . | . . . Recycled Matter . | . . . Retrieved Matter . | . . . Retrieved Components . | . . . Parts Scanalyzed 1 | . . 1 Part Schematics Acquired 1 | . . 1 Parts Damaged 1 | . . 1 Bothacking | -11 -10 -9 ------------ Run | Scr Mat Mat Used RIF Installer . | . . . Robots Hacked . | . . . Non-combat . | . . . Combat . | . . . Robot Hacks Applied . | . . . Relay Couplers Released . | . . . Robots Rewired . | . . . Allies Hacked . | . . . Hacks Repelled . | . . . Allies | -11 -10 -9 -------- Run | Scr Mat Mat Total Allies . | . . . Largest Group . | . . . Highest-Rated Group . | . . . Highest-Rated Ally . | . . . Total Orders . | . . . Ally Attacks . | . . . Total Damage . | . . . Kills . | . . . Allies Corrupted . | . . . Allies Melted . | . . . Intel | -11 -10 -9 ------- Run | Scr Mat Mat Robot Analysis Total . | . . . Derelict Logs Recovered . | . . . Drone Launches . | . . . Drone Recoveries . | . . . Exploration | -11 -10 -9 ------------- Run | Scr Mat Mat Turns Passed 777 | 113 381 283 Spaces Moved 365 | 79 186 100 Core 15 | 13 . 2 Treads . | . . . Legs 290 | 66 186 38 Wheels 60 | . . 60 Hover . | . . . Flight . | . . . Fastest Speed 50 | 50 120 120 Average Speed 133 | 108 133 152 Slowest Speed 650 | 120 180 650 Overloaded Moves . | . . . Propulsion Burnouts . | . . . Robots Hopped . | . . . Cave-ins Triggered . | . . . Exploration Rate (%) 23 | 6 47 16 Regions Visited 2 Branch Regions . Pre-discovered Areas . | . . . Known Exits Taken . | . . . Unknown Exits Taken 2 | 1 1 . Scrap Searched . | . . . Spaces Dug . | . . . Terrain Destroyed 11 | . 10 1 Melee . | . . . Projectile 1 | . . 1 AOE 10 | . 10 . Terrain Rammed . | . . . Walls Destroyed . | . . . Machines Disabled . | . . . Actions | -11 -10 -9 --------- Run | Scr Mat Mat Total 501 | 98 248 155 Wait 6 | . 6 . Move 363 | 78 185 100 Hop . | . . . Pick Up 24 | 9 8 7 Fast Attach 1 | . 1 . Attach 13 | 6 2 5 Detach 2 | . 2 . Swap 12 | 1 8 3 Drop 4 | . 1 3 Fire 76 | 4 35 37 Melee . | . . . Ram . | . . . Kick . | . . . Crush . | . . . Escape Stasis . | . . . Rewire . | . . . Trap . | . . . Miscellaneous . | . . . Route ------- -11/Scrapyard -10/Materials (discovered 3 exits: *Mat x2 / [*Min]) -9/Materials (discovered 1 exit: [*Min]) History --------- Turn | Location | Event 2 | -11/Scrapyard | Met Revision 17 86 | -11/Scrapyard | Discovered new exit (range 8) 114 | -11/Scrapyard | Entered Materials 267 | -10/Materials | Discovered new exit (range 12) 306 | -10/Materials | Build established: Mutant 349 | -10/Materials | Discovered new exit (range 15) 442 | -10/Materials | Discovered new exit (range 8) 495 | -10/Materials | Entered another Materials area 495 | -9/Materials | Evolved 2 slots: Utility x1, Weapon x1 674 | -9/Materials | Discovered new exit (range 7) 778 | -9/Materials | Core integrity fell below 50% 778 | -9/Materials | Self-destructed Last Messages --------------- 00741_ G-34 Mercenary destroyed. 00742_ K-01 Serf collects debris. 00748_ Destroyed Sml. Laser. 00748_ G-34 Mercenary knocked back. 00749_ K-01 Serf collects debris. 00751_ Com. Wheel destroyed. 00751_ K-01 Serf collects debris. 00753_ Lgt. Assault Rifle destroyed. 00754_ K-01 Serf collects debris. 00755_ K-01 Serf destroyed. 00755_ Destroyed Flight Unit. 00756_ K-01 Serf collects debris. 00757_ U-05 Engineer builds a Wall. 00758_ Aluminum Leg destroyed. 00759_ K-01 Serf destroyed. 00759_ S-10 Pest destroyed. 00762_ S-10 Pest knocked back. 00765_ Imp. Light Cannon destroyed. 00770_ S-10 Pest destroyed. 00774_ Lgt. Cannon destroyed. Map ----- +----------------------------------------------------+ | ?????????????????????????????????????????????????? | | ?????????????????????????????????????????????????? | | ?????????????????????????????????????????????????? | | ?????????????????????????????????????????????????? | | ?????????????????????????????????????????????????? | | ?????????????????????????????????????????????????? | | ?????????????????????????????????????????????????? | | ?????????????????????????? ?????????????????????? | | ?????????????????????????? ???????????????????? | | ?????????????????????????? ??????????????????? | | ?????????????????????????? ??????????????????? | | ?????????????????????????? !! ??????????????????? | | ??????????????????????????===% ??????????? ???? | | ??????????????????????????=%%""""????????? ??? | | ????????????????????????##==%"""""???????? #??? | | ???????????????????????## s=%%%""""?????? #??? | | ??????????????????????? %%%"""""??????? #??? | | ???????????????????????? [%%%%"""??????? #??? | | ????????????????????????[*sss%% ????????? #??? | | ????????????????????????#%=s% ??????????? #??? | | ????????????????????????#a=%%#####????????# #??? | | ????????????????????????#%%%!# ?????????# #??? | | ????????????????????????#*!!*+ ???????????# #??? | | ????????????????????????# != #????????????# #??? | | ????????????????######??#w* #????????????# #### | | ????????????????? #??#@ #????????????# | | ??????????????????# #??# * #????????????# | | ??????????????????# #### %! #????????????# | | ??????????????????# = #????????????#=| | | ??????????#???????# ############## | | ??????????# ????# !=! | | ??????????# ### * | | ????????# < " """ """ """ ]] | | ??????????# ### " " """ """ """ ]/ | | ??????????# ????##+#### """ """ """ """ ] | | ??????????##?????? ?# | | ?????????????????#""" # | | ?????????????????#""" + | | ?????????????????#""" ##### | | ?????????????????# #???# | | ?????????????????# #???# ################# | | ?????????????????########???# #???????????????# | | ????????????????????????????# #???????????????# | | ????????????????????????????# ????????????????# | | ????????????????????????????# ????????????????# | | ????????????????????????????? ????????????????# | | ????????????????????????????????????#########+### | | ????????????????????????????????? | | ????????????????????????????????? | | ????????????????????????????????? | +----------------------------------------------------+ Best States ------------- Heat Dissipation 38 Energy Generation 10 Energy Capacity 125 Matter Stores 300 Matter Capacity 300 Sight Range 16 Robot Scan Range 10 Terrain Scan Density 10 Resistance: KI 20 Resistance: TH 20 Resistance: EX 20 Resistance: EM 20 Resistance: I 20 Resistance: S 20 Resistance: P 20 Evasion (%) 50 Offensive Hacking 10 Item Schematics ----------------- Mining Laser | -9/Materials | Scanalyzed Robot Schematics ------------------ None Fabricated ------------ Nothing Alien Tech Used ----------------- None Achievements -------------- None Challenges ------------ None Game ------ Seed MeleeSlugAmplifier Manual? 0 Play Time 00:15:21 Cumulative 10.5 hours Start 2021.09.18 @ 00:30:57 End 2021.09.18 @ 00:44:54 Sessions 1 Manual Loads 0 Difficulty Adventurer Special Mode None Game No. 17 Rogue 0 Adventurer 17 Explorer 0 Win Type - Total 0 Types 0/0/0/0/0/0/0/0/0 Lore% 9 Gallery% 22 Achievement% 14 Wizard Run 0 Options --------- ASCII 1 Keyboard 0 Movement Mouse Keybinds 0 Fullscreen 1 Font 18/TerminusBold Map View 76x50 Tactical HUD 1 Map Filters NONE Filters NONE Steam 1 RUN: 2d5d3893-747d-4327-be43-25892d2309f2